bitfinex/quotes_SOLUSD_20240625
["timestamp","ask_amount","ask_price","bid_price","bid_amount"]
[1719342525965,6.97,139.03,138.98,6.97]
[1719342526680,6.97,139.04,138.98,6.97]
[1719342527397,6.97,139.04,138.96,1.22698417]
[1719342531303,6.97,139.03,138.96,1.22698417]
[1719342531492,6.97,139.03,138.98,6.97]
[1719342531877,14.21095671,139.07,138.95,0.8663847]
[1719342531878,6.97,139.0,138.95,0.8663847]
[1719342532096,15.076,139.01,138.95,0.8663847]
[1719342532290,7.1957,138.98,138.95,0.8663847]
[1719342532511,20.0,139.0,138.95,0.8663847]
[1719342532512,6.97,138.96,138.95,0.8663847]
[1719342532824,6.97,138.97,138.95,0.8663847]
[1719342533500,6.97,138.96,138.95,0.8663847]
[1719342534998,20.0,139.0,138.95,0.8663847]
[1719342535399,6.97,138.96,138.95,0.8663847]
[1719342537279,19.9616,138.96,138.95,0.8663847]
[1719342537477,19.9616,138.96,138.92,0.04265352]
[1719342537726,6.97,138.93,138.92,0.04265352]
[1719342539284,7.2002,138.89,138.81,0.8663847]
[1719342539510,6.97,138.86,138.81,0.8663847]
[1719342539714,6.97,138.85,138.81,0.8663847]
[1719342540017,6.97,138.88,138.81,0.8663847]
[1719342540218,6.97,138.84,138.81,0.8663847]
[1719342540513,6.97,138.83,138.81,0.8663847]
[1719342540700,34.97950002,138.88,138.81,0.8663847]
[1719342540701,6.97,138.82,138.81,0.8663847]
[1719342540886,7.2011,138.87,138.81,0.8663847]
[1719342541214,6.97,138.83,138.81,0.8663847]
[1719342542022,6.97,138.84,138.81,0.8663847]
[1719342542195,6.97,138.83,138.81,0.8663847]
[1719342542400,6.97,138.82,138.81,0.8663847]
[1719342542600,7.201,138.87,138.81,0.8663847]
[1719342542910,7.2013,138.87,138.81,0.8663847]
[1719342543308,7.2031,138.83,138.81,0.8663847]
[1719342543615,7.2035,138.82,138.81,0.8663847]
[1719342543814,7.203,138.83,138.81,0.8663847]
[1719342544020,20.96,138.85,138.81,0.8663847]
[1719342544204,28.05950002,138.85,138.81,0.8663847]
[1719342544520,7.2035,138.82,138.81,0.8663847]
[1719342545258,48.1635,138.82,138.81,0.8663847]
[1719342545595,93.1635,138.82,138.81,0.8663847]
[1719342545832,93.1635,138.82,138.69,147.85649414]
[1719342545833,7.2048,138.8,138.69,147.85649414]
[1719342546330,7.2055,138.79,138.69,147.85649414]
[1719342546626,7.2055,138.79,138.69,0.915]
[1719342546822,7.2056,138.78,138.69,0.915]
[1719342547006,7.2052,138.79,138.69,0.915]
[1719342547208,7.2052,138.79,138.67,0.8663847]
[1719342547724,7.09950002,138.79,138.67,0.8663847]
[1719342547973,14.30490002,138.79,138.67,0.8663847]
[1719342548303,28.1657,138.78,138.67,0.8663847]
[1719342548523,28.05950002,138.78,138.67,0.8663847]
[1719342548708,35.26520002,138.78,138.67,0.8663847]
[1719342548905,23.697,138.8,138.67,0.8663847]
[1719342549129,20.0,138.79,138.67,0.8663847]
[1719342549503,16.4924,138.8,138.67,0.8663847]
[1719342549727,20.96,138.81,138.67,0.8663847]
[1719342549728,20.23805671,138.82,138.68,0.17]
[1719342549928,7.2047,138.8,138.68,0.34]
[1719342550302,27.44205671,138.82,138.68,0.34]
[1719342551105,27.44205671,138.82,138.69,0.915]
[1719342551312,7.09950002,138.82,138.7,0.34]
[1719342551526,7.09950002,138.82,138.7,20.34]
[1719342551833,31.50525669,138.86,138.72,20.96]
[1719342551834,13.50065669,138.86,138.72,20.96]
[1719342552027,7.11145669,138.86,138.73,0.17]
[1719342552222,7.11145669,138.86,138.73,20.34]
[1719342552638,14.29990002,138.88,138.75,20.96]
[1719342552845,14.29990002,138.88,138.76,0.34]
[1719342553007,7.09950002,138.88,138.76,0.34]
[1719342553206,7.09950002,138.88,138.76,20.34]
[1719342553407,7.1991,138.91,138.79,0.915]
[1719342553642,7.09950002,138.91,138.79,0.915]
[1719342553809,35.17095671,138.9,138.79,0.915]
[1719342554012,7.2015,138.86,138.79,0.915]
[1719342555219,7.2011,138.87,138.79,0.915]
[1719342555934,6.7011,138.87,138.79,0.915]
[1719342556133,6.7011,138.87,138.76,0.34]
[1719342556509,7.2006,138.88,138.76,0.34]
[1719342556711,20.0,138.87,138.76,0.34]
[1719342556910,20.0,138.87,138.76,0.17]
[1719342557109,35.17095671,138.9,138.76,0.17]
[1719342557110,14.21095671,138.9,138.76,0.17]
[1719342557341,14.21095671,138.9,138.76,0.34]
[1719342557518,7.2006,138.88,138.76,0.17]
[1719342557717,20.0,138.89,138.76,0.34]
[1719342558213,20.0,138.89,138.76,0.17]
[1719342558214,27.09950002,138.89,138.76,0.17]
[1719342558416,27.09950002,138.89,138.76,20.17]
[1719342558417,28.05950002,138.88,138.76,20.17]
[1719342558727,7.2022,138.85,138.76,0.17]
[1719342559429,7.2016,138.86,138.76,0.17]
[1719342560409,7.2022,138.85,138.75,0.915]
[1719342560614,7.2021,138.85,138.75,0.915]
[1719342560939,7.2025,138.84,138.75,0.915]
[1719342561323,7.2022,138.85,138.75,0.915]
[1719342562708,7.09950002,138.86,138.75,0.915]
[1719342562913,7.09950002,138.86,138.76,0.34]
[1719342563827,7.09950002,138.86,138.75,21.875]
[1719342564039,14.30110002,138.86,138.75,21.875]
[1719342564623,7.09950002,138.86,138.76,0.34]
[1719342564827,14.31195669,138.88,138.76,20.34]
[1719342565822,7.11145669,138.88,138.76,20.34]
[1719342566520,7.09950002,138.89,138.78,20.96]
[1719342566752,7.09950002,138.89,138.79,0.34]
[1719342568026,14.29950002,138.89,138.79,0.34]
[1719342568439,14.29950002,138.89,138.79,0.17]
[1719342568647,7.2006,138.88,138.78,20.96]
[1719342568950,14.29960002,138.89,138.77,1.085]
[1719342569145,14.29960002,138.89,138.78,0.17]
[1719342571542,7.09950002,138.89,138.77,0.915]
[1719342571747,7.09950002,138.88,138.77,0.915]
[1719342571951,7.2013,138.87,138.77,0.915]
[1719342572826,7.2018,138.86,138.77,0.915]
[1719342573222,7.2021,138.85,138.77,0.915]
[1719342574756,7.2016,138.86,138.77,0.915]
[1719342574933,7.09950002,138.88,138.77,0.915]
[1719342575287,20.0,138.87,138.77,0.915]
[1719342575443,7.09950002,138.88,138.77,0.915]
[1719342576057,7.09950002,138.88,138.77,21.875]
[1719342577129,7.09950002,138.88,138.78,0.17]
[1719342577540,7.2,138.89,138.78,0.17]
[1719342578056,7.2,138.89,138.78,20.17]
[1719342578755,7.1985,138.92,138.81,20.96]
[1719342578955,6.2699,138.93,138.82,0.17]
[1719342578956,13.4679,138.93,138.82,0.17]
[1719342579176,7.1985,138.92,138.81,20.96]
[1719342579764,7.199,138.91,138.81,20.96]
[1719342580750,7.1985,138.92,138.81,20.96]
[1719342583269,29.82726505,138.95,138.82,0.915]
[1719342583570,7.1979,138.93,138.82,21.085]
[1719342584871,20.0,138.92,138.82,0.915]
[1719342585471,7.1989,138.91,138.82,0.915]
[1719342586335,27.1985,138.92,138.82,0.915]
[1719342588642,7.1991,138.91,138.82,0.915]
[1719342589158,7.1996,138.9,138.82,0.915]
[1719342589343,20.0,138.92,138.82,0.915]
[1719342589344,7.2007,138.88,138.82,0.915]
[1719342591040,6.62579824,138.9,138.82,0.915]
[1719342591246,20.0,138.89,138.82,0.915]
[1719342591766,27.2,138.89,138.82,0.915]
[1719342594252,27.2,138.89,138.76,20.0]
[1719342594253,7.2015,138.86,138.77,0.915]
[1719342595548,20.96,138.86,138.77,0.915]
[1719342595753,65.0,138.85,138.77,0.915]
[1719342596147,20.0,138.85,138.77,0.915]
[1719342596649,27.2023,138.85,138.77,0.915]
[1719342596854,20.0,138.85,138.77,0.915]
[1719342597057,27.202,138.85,138.77,0.915]
[1719342598345,13.73725493,138.86,138.77,0.915]
[1719342598570,7.11145669,138.86,138.77,0.915]
[1719342598879,7.201,138.87,138.77,0.915]
[1719342599081,7.201,138.87,138.77,1.39925093]
[1719342599376,7.2015,138.86,138.77,1.39925093]
[1719342599667,7.2009,138.88,138.77,1.39925093]
[1719342599871,7.2012,138.87,138.77,1.39925093]
[1719342600442,7.2016,138.86,138.77,1.39925093]
[1719342601261,7.2022,138.85,138.77,0.915]
[1719342601683,7.2025,138.84,138.77,0.915]
[1719342601986,7.11145669,138.87,138.77,0.915]
[1719342602183,7.2006,138.88,138.77,0.915]
[1719342602771,7.2011,138.87,138.77,0.915]
[1719342603265,7.2006,138.88,138.77,0.915]
[1719342603493,7.2011,138.87,138.77,0.915]
[1719342603698,13.82639824,138.88,138.77,0.915]
[1719342603898,7.201,138.87,138.77,0.915]
[1719342604509,7.202,138.85,138.77,0.915]
[1719342604682,13.73725493,138.87,138.77,0.915]
[1719342605204,7.2022,138.85,138.77,0.915]
[1719342606407,7.2037,138.82,138.77,0.915]
[1719342606669,7.2041,138.81,138.77,0.915]
[1719342606905,7.2037,138.82,138.77,0.915]
[1719342607402,26.62579824,138.84,138.77,0.915]
[1719342607573,26.62579824,138.84,138.7,259.7]
[1719342607574,6.62579824,138.82,138.71,0.915]
[1719342607774,7.2044,138.81,138.71,0.915]
[1719342608385,7.2047,138.8,138.71,0.915]
[1719342608698,7.2042,138.81,138.71,0.915]
[1719342609301,6.62579824,138.81,138.71,0.915]
[1719342609507,26.62579824,138.8,138.71,0.915]
[1719342611185,22.5736,138.79,138.67,0.8663847]
[1719342611390,7.2084,138.73,138.67,0.8663847]
[1719342611597,7.2078,138.74,138.67,0.8663847]
[1719342612007,38.9773,138.76,138.67,0.8663847]
[1719342612308,7.2092,138.72,138.67,0.8663847]
[1719342613684,7.2094,138.71,138.67,0.8663847]
[1719342614202,7.2089,138.72,138.67,0.8663847]
[1719342614510,27.2094,138.71,138.67,0.8663847]
[1719342615182,7.2098,138.7,138.67,0.8663847]
[1719342615802,26.62579824,138.71,138.67,0.8663847]
[1719342615803,7.2104,138.69,138.67,0.8663847]
[1719342616012,7.2098,138.7,138.67,0.8663847]
[1719342616307,26.62579824,138.71,138.67,0.8663847]
[1719342616507,7.2108,138.68,138.67,0.8663847]
[1719342616876,13.83659824,138.68,138.67,0.8663847]
[1719342617701,6.62579824,138.68,138.67,0.8663847]
[1719342618215,27.11145669,138.71,138.67,0.8663847]
[1719342618381,27.2097,138.71,138.67,0.8663847]
[1719342618599,6.62579824,138.73,138.67,1.7813847]
[1719342619499,13.73725493,138.73,138.67,0.8663847]
[1719342621013,20.94545493,138.73,138.67,0.8663847]
[1719342621209,13.73725493,138.73,138.67,0.8663847]
[1719342621749,21.20478345,138.78,138.68,0.915]
[1719342621886,20.0,138.81,138.69,0.17]
[1719342622081,26.62579824,138.81,138.69,0.17]
[1719342622297,6.62579824,138.81,138.69,0.17]
[1719342622507,6.62579824,138.81,138.69,0.34]
[1719342622812,6.62579824,138.81,138.71,20.96]
[1719342623405,6.62579824,138.81,138.72,0.17]
[1719342623723,6.62579824,138.81,138.72,0.34]
[1719342624224,6.62579824,138.81,138.71,20.96]
[1719342624416,6.62579824,138.81,138.7,1.085]
[1719342624417,13.82999824,138.81,138.7,1.085]
[1719342624762,6.62579824,138.81,138.71,0.17]
[1719342625288,21.12436031,138.84,138.71,0.34]
[1719342625392,20.0,138.83,138.71,0.34]
[1719342625721,27.2034,138.83,138.71,0.34]
[1719342627025,27.2034,138.83,138.72,0.915]
[1719342627212,27.2034,138.83,138.73,0.17]
[1719342627590,13.73725493,138.84,138.73,0.17]
[1719342627932,20.94015493,138.84,138.73,0.17]
[1719342628321,7.2031,138.83,138.73,0.17]
[1719342628809,20.93985493,138.84,138.73,0.17]
[1719342629220,7.2032,138.83,138.73,0.17]
[1719342629526,7.2052,138.79,138.72,0.915]
[1719342629716,7.2047,138.8,138.72,0.915]
[1719342629906,27.2039,138.82,138.72,0.915]
[1719342630228,20.0,138.82,138.72,0.915]
[1719342630594,7.2044,138.81,138.72,0.915]
[1719342630791,6.62579824,138.83,138.73,0.17]
[1719342631017,13.82909824,138.83,138.73,0.17]
[1719342631294,7.2037,138.82,138.73,0.17]
[1719342631494,7.2037,138.82,138.72,0.915]
[1719342632126,6.62579824,138.83,138.72,0.915]
[1719342632425,7.205,138.8,138.72,0.915]
[1719342633223,6.62579824,138.83,138.72,0.915]
[1719342633526,20.0,138.82,138.72,0.915]
[1719342633836,7.2049,138.8,138.72,0.915]
[1719342634142,7.2043,138.81,138.72,0.915]
[1719342634636,27.2035,138.82,138.72,0.915]
[1719342635026,7.2042,138.81,138.72,0.915]
[1719342635411,20.0,138.82,138.72,0.915]
[1719342635608,27.2039,138.82,138.72,0.915]
[1719342635810,7.2041,138.81,138.72,0.915]
[1719342636011,27.2037,138.82,138.72,0.915]
[1719342636420,20.0,138.82,138.72,0.915]
[1719342637236,27.2036,138.82,138.72,0.915]
[1719342638203,7.2036,138.82,138.72,0.915]
[1719342638828,6.62579824,138.83,138.72,0.915]
[1719342639217,7.2049,138.8,138.72,0.915]
[1719342642231,7.2052,138.79,138.72,0.915]
[1719342643028,7.2048,138.8,138.72,0.915]
[1719342643962,7.2051,138.79,138.72,0.915]
[1719342645732,7.2057,138.78,138.72,0.915]
[1719342647231,7.2052,138.79,138.72,0.915]
[1719342649616,40.0969,138.82,138.72,0.915]
[1719342649898,7.2053,138.79,138.72,0.915]
[1719342650022,20.0,138.78,138.72,0.915]
[1719342652333,27.2052,138.79,138.72,0.915]
[1719342654225,7.2057,138.78,138.72,0.915]
[1719342654722,66.20009089,138.81,138.72,0.915]
[1719342654723,20.94135493,138.81,138.72,0.915]
[1719342654928,6.62579824,138.81,138.72,0.915]
[1719342655127,7.11145669,138.85,138.72,21.895]
[1719342655338,20.0,138.84,138.72,21.895]
[1719342655526,7.2036,138.82,138.72,21.895]
[1719342655914,7.2028,138.84,138.73,1.255]
[1719342656154,7.2028,138.84,138.73,1.085]
[1719342656416,7.2031,138.83,138.73,0.915]
[1719342656720,7.2027,138.84,138.73,0.915]
[1719342657112,7.2035,138.82,138.73,0.915]
[1719342657318,7.2031,138.83,138.73,0.915]
[1719342658133,7.2026,138.84,138.73,0.915]
[1719342659742,7.2032,138.83,138.73,0.915]
[1719342661582,7.2027,138.84,138.73,0.915]
[1719342661737,20.93935493,138.85,138.74,0.34]
[1719342662128,7.11145669,138.85,138.75,0.915]
[1719342662357,7.11145669,138.85,138.75,21.895]
[1719342662559,7.2011,138.87,138.75,21.895]
[1719342662724,7.2015,138.86,138.76,0.17]
[1719342662929,7.201,138.87,138.77,0.915]
[1719342665628,13.82629824,138.88,138.78,20.98]
[1719342667246,7.1998,138.9,138.79,0.915]
[1719342667443,7.2,138.89,138.8,0.17]
[1719342667987,7.1995,138.9,138.8,0.17]
[1719342669235,7.2,138.89,138.8,0.17]
[1719342669430,7.1996,138.9,138.8,0.17]
[1719342669632,7.199,138.91,138.8,0.17]
[1719342670041,7.199,138.91,138.81,0.915]
[1719342670338,7.199,138.91,138.81,21.895]
[1719342671049,7.1984,138.92,138.81,21.895]
[1719342671351,14.30935669,138.93,138.83,0.915]
[1719342672046,14.30945669,138.93,138.83,0.915]
[1719342674284,7.11145669,138.93,138.84,0.17]
[1719342674427,7.1979,138.93,138.84,20.98]
[1719342675122,7.1997,138.9,138.83,0.915]
[1719342675323,16.5493,138.93,138.83,0.915]
[1719342675520,7.11145669,138.91,138.83,0.915]
[1719342675744,20.0,138.9,138.83,0.915]
[1719342676438,7.2005,138.88,138.83,0.915]
[1719342676848,20.0,138.9,138.8,0.915]
[1719342677037,6.38363713,138.89,138.8,0.915]
[1719342677558,7.2016,138.86,138.8,0.915]
[1719342678849,7.2011,138.87,138.8,0.915]
[1719342679043,7.203,138.84,138.8,0.915]
[1719342679639,7.2031,138.83,138.8,0.915]
[1719342679841,6.38363713,138.87,138.8,0.915]
[1719342680032,7.2013,138.87,138.8,0.915]
[1719342680400,7.2014,138.87,138.8,0.915]
[1719342680541,20.98,138.89,138.8,0.915]
[1719342680740,7.2011,138.87,138.8,0.915]
[1719342681553,7.2016,138.86,138.8,0.915]
[1719342682939,7.2011,138.87,138.8,0.915]
[1719342683567,7.202,138.85,138.8,0.915]
[1719342683928,7.11145669,138.87,138.8,0.915]
[1719342686336,14.31245669,138.87,138.8,0.915]
[1719342687738,7.11145669,138.87,138.8,0.915]
[1719342688570,14.31275669,138.87,138.8,0.915]
[1719342688754,14.31255669,138.87,138.8,0.915]
[1719342688948,14.31245669,138.87,138.8,0.915]
[1719342689559,7.11145669,138.87,138.8,0.915]
[1719342690269,7.2029,138.84,138.8,0.915]
[1719342690466,7.2032,138.83,138.8,0.915]
[1719342691569,7.2031,138.83,138.72,0.915]
[1719342692245,7.2031,138.83,138.72,20.915]
[1719342692444,7.2026,138.84,138.72,20.915]
[1719342692842,7.2021,138.85,138.74,0.915]
[1719342693243,22.81395669,138.87,138.75,0.17]
[1719342693244,7.2016,138.86,138.75,0.17]
[1719342693440,7.202,138.85,138.75,0.17]
[1719342693837,7.202,138.85,138.74,0.915]
[1719342694536,22.81395669,138.87,138.75,0.915]
[1719342694537,14.31235669,138.87,138.75,0.915]
[1719342694742,7.11145669,138.87,138.76,0.34]
[1719342695399,7.2018,138.86,138.75,20.915]
[1719342695766,14.31255669,138.87,138.75,20.915]
[1719342695959,7.11145669,138.87,138.77,0.915]
[1719342697164,7.11145669,138.87,138.78,0.17]
[1719342698059,7.1999,138.89,138.79,0.915]
[1719342698243,7.11145669,138.91,138.79,0.915]
[1719342698244,7.1994,138.9,138.79,0.915]
[1719342698650,14.31035669,138.91,138.79,0.915]
[1719342698968,7.11145669,138.91,138.8,22.065]
[1719342699495,7.11145669,138.91,138.81,0.915]
[1719342699639,38.9717,138.96,138.81,0.915]
[1719342699640,22.94785669,138.97,138.84,0.915]
[1719342699837,7.1964,138.96,138.85,0.17]
[1719342700181,7.197,138.95,138.85,0.17]
[1719342701870,14.30755669,138.97,138.87,0.915]
[1719342703372,7.11145669,138.97,138.87,0.915]
[1719342703570,14.30725669,138.97,138.87,0.915]
[1719342705382,7.1964,138.96,138.87,0.915]
[1719342705870,14.30725669,138.97,138.87,0.915]
[1719342706993,7.1958,138.97,138.87,0.915]
[1719342708259,6.33676491,138.98,138.87,0.915]
[1719342708460,7.1953,138.98,138.88,0.17]
[1719342709214,7.1949,138.99,138.88,0.17]
[1719342709495,7.1944,139.0,138.89,21.895]
[1719342709667,6.33676491,139.02,138.92,20.98]
[1719342709992,6.33676491,139.02,138.91,0.915]
[1719342709993,7.193,139.03,138.93,0.17]
[1719342710286,7.1932,139.02,138.93,0.17]
[1719342710490,7.1932,139.02,138.92,0.34]
[1719342710860,15.5459,139.04,138.91,0.915]
[1719342711489,7.1931,139.03,138.91,0.915]
[1719342711671,15.5459,139.04,138.92,0.17]
[1719342712081,7.1928,139.03,138.92,0.17]
[1719342712383,7.1923,139.04,138.93,0.915]
[1719342712596,7.1923,139.04,138.94,0.17]
[1719342712758,7.1922,139.04,138.94,0.17]
[1719342712960,7.1931,139.03,138.93,0.915]
[1719342713181,7.1932,139.02,138.93,0.915]
[1719342713389,7.193,139.03,138.93,0.915]
[1719342713585,7.1922,139.04,138.93,0.915]
[1719342713902,7.1922,139.04,138.94,0.17]
[1719342714287,7.1929,139.03,138.93,0.915]
[1719342714808,7.11145669,139.05,138.93,0.915]
[1719342714995,7.11145669,139.05,138.95,0.915]
[1719342714996,7.1916,139.05,138.95,0.915]
[1719342715517,24.31496491,139.06,138.95,0.915]
[1719342715817,7.1928,139.03,138.95,0.915]
[1719342716413,7.1922,139.04,138.95,0.915]
[1719342716818,7.1927,139.03,138.95,0.915]
[1719342718218,7.1932,139.02,138.95,0.915]
[1719342718712,7.1938,139.01,138.95,0.915]
[1719342719502,7.1933,139.02,138.95,0.915]
[1719342720513,7.1948,138.99,138.92,0.915]
[1719342720727,7.1944,139.0,138.92,0.915]
[1719342721219,7.1937,139.01,138.92,0.915]
[1719342721387,7.1943,139.0,138.92,0.915]
[1719342722822,7.1926,139.03,138.92,0.915]
[1719342723116,7.1936,139.02,138.92,0.915]
[1719342723317,7.1937,139.01,138.92,0.915]
[1719342723614,24.4338,139.05,138.92,0.915]
[1719342723802,20.0,139.04,138.92,0.915]
[1719342724002,7.193,139.03,138.92,0.915]
[1719342724315,7.1928,139.03,138.92,0.915]
[1719342725455,7.1932,139.02,138.92,0.915]
[1719342725636,7.1927,139.03,138.92,0.915]
[1719342725917,34.30375669,139.04,138.92,0.915]
[1719342726090,27.11145669,139.04,138.94,0.915]
[1719342726286,27.11145669,139.04,138.94,1.78027032]
[1719342726525,7.11145669,139.04,138.94,1.78027032]
[1719342726815,7.11145669,139.04,138.95,0.17]
[1719342727606,7.1932,139.02,138.94,1.78027032]
[1719342728226,7.1928,139.03,138.94,1.78027032]
[1719342728808,14.30375669,139.04,138.94,1.78027032]
[1719342729725,7.193,139.03,138.94,1.78027032]
[1719342729931,7.1945,139.0,138.94,0.915]
[1719342730100,104.68016491,139.03,138.94,0.915]
[1719342730438,7.1949,138.99,138.94,0.915]
[1719342733924,7.1953,138.98,138.89,0.915]
[1719342734100,7.1967,138.96,138.89,0.915]
[1719342734301,6.33676491,138.98,138.89,0.915]
[1719342734610,7.1981,138.93,138.86,0.915]
[1719342735017,127.26345669,138.97,138.86,0.915]
[1719342735216,6.33676491,138.96,138.86,0.915]
[1719342735408,7.1982,138.93,138.86,0.915]
[1719342736633,37.9923,138.95,138.86,0.915]
[1719342736801,65.98,138.94,138.86,0.915]
[1719342736997,7.1985,138.92,138.86,0.915]
[1719342737431,7.1995,138.9,138.79,0.915]
[1719342737833,7.2006,138.88,138.79,0.915]
[1719342738008,7.2,138.89,138.79,0.915]
[1719342738610,7.2005,138.88,138.79,0.915]
[1719342739432,7.2,138.89,138.79,0.915]
[1719342740307,7.2006,138.88,138.79,0.915]
[1719342740819,7.2,138.89,138.79,0.915]
[1719342742020,7.2005,138.88,138.79,0.915]
[1719342742641,7.201,138.87,138.79,0.915]
[1719342743924,7.2015,138.86,138.79,0.915]
[1719342746216,7.2011,138.87,138.79,0.915]
[1719342748437,20.98,138.88,138.79,0.915]
[1719342749122,7.2011,138.87,138.79,0.915]
[1719342751747,7.2017,138.86,138.79,0.915]
[1719342754941,7.2011,138.87,138.79,0.915]
[1719342755848,20.98,138.88,138.79,0.915]
[1719342756740,13.4482216,138.89,138.79,0.915]
[1719342756921,7.2006,138.88,138.79,0.915]
[1719342757619,13.4482216,138.89,138.79,0.915]
[1719342757826,20.6483216,138.89,138.79,0.915]
[1719342758139,7.2006,138.88,138.79,0.915]
[1719342758347,13.4482216,138.89,138.79,0.915]
[1719342758652,7.2006,138.88,138.79,0.915]
[1719342759526,7.2011,138.87,138.79,0.915]
[1719342760553,7.2016,138.86,138.79,0.915]
[1719342760752,7.2024,138.85,138.79,0.915]
[1719342761141,38.9812,138.88,138.79,0.915]
[1719342761339,27.31676491,138.85,138.79,0.915]
[1719342761654,7.2031,138.83,138.79,0.915]
[1719342762237,27.31676491,138.85,138.79,0.915]
[1719342762533,7.203,138.83,138.79,0.915]
[1719342763235,27.31676491,138.85,138.79,0.915]
[1719342763236,18.0066,138.84,138.79,0.915]
[1719342763531,7.2046,138.8,138.79,0.915]
[1719342763752,7.2056,138.79,138.67,0.8663847]
[1719342763947,7.2061,138.77,138.67,0.8663847]
[1719342764156,7.2058,138.78,138.67,0.8663847]
[1719342764637,7.2057,138.78,138.67,0.8663847]
[1719342764838,7.2062,138.77,138.67,0.8663847]
[1719342765757,7.2058,138.78,138.67,0.8663847]
[1719342767551,7.2062,138.77,138.67,0.8663847]
[1719342767765,7.2071,138.76,138.67,0.8663847]
[1719342767951,28.09145669,138.79,138.67,0.8663847]
[1719342768156,34.4282216,138.79,138.67,0.8663847]
[1719342768459,45.0,138.78,138.67,0.8663847]
[1719342768944,20.98,138.75,138.67,0.8663847]
[1719342769270,7.2087,138.73,138.67,0.8663847]
[1719342769656,7.2083,138.73,138.67,0.8663847]
[1719342770243,7.2088,138.72,138.67,0.8663847]
[1719342771059,7.2084,138.73,138.67,0.8663847]
[1719342771568,7.2078,138.74,138.67,0.8663847]
[1719342771747,7.2072,138.75,138.68,7.2106]
[1719342771950,7.2072,138.75,138.67,18.8941847]
[1719342771951,14.31775669,138.77,138.67,18.8941847]
[1719342772165,7.2067,138.76,138.68,7.2105]
[1719342772473,14.31775669,138.77,138.69,7.2102]
[1719342772776,14.31775669,138.77,138.7,7.2096]
[1719342773274,14.31775669,138.77,138.69,25.2354]
[1719342773745,14.31775669,138.77,138.7,7.2097]
[1719342774385,7.11145669,138.77,138.71,7.2092]
[1719342774551,7.2058,138.78,138.71,7.2092]
[1719342774882,7.2052,138.79,138.71,7.2092]
[1719342775278,7.2052,138.79,138.72,7.2087]
[1719342775457,7.11145669,138.81,138.68,18.0271]
[1719342775458,18.0116,138.8,138.68,18.0271]
[1719342775774,7.2068,138.76,138.68,25.2376]
[1719342776187,7.2072,138.75,138.68,25.2376]
[1719342776756,18.0143,138.78,138.68,25.2375]
[1719342776981,7.2075,138.75,138.68,18.0271]
[1719342777286,18.0143,138.78,138.67,0.8663847]
[1719342777770,18.0143,138.78,138.67,8.0773847]
[1719342777994,7.2075,138.75,138.67,8.0773847]
[1719342778178,7.2088,138.72,138.67,0.8663847]
[1719342778551,7.2084,138.73,138.67,0.8663847]
[1719342779166,7.2087,138.72,138.67,0.8663847]
[1719342779577,62.0789,138.76,138.67,0.8663847]
[1719342779885,7.2084,138.73,138.67,0.8663847]
[1719342780053,7.2078,138.74,138.67,8.0776847]
[1719342780375,44.0618,138.76,138.67,8.0775847]